Workbook

Sheet Feature List
A1: Adaptu Project | B1: Feature Prioritization Manager
A2: Feature List
A4: Cat. | B4: Feature Name | C4: Feature Description
A5: Prod X | B5: Feature A | C5: Feature A description
A6: Prod X | B6: Feature B | C6: Feature B description
A7: Prod X | B7: Feature C | C7: Feature C description
A8: Prod Z | B8: Feature ZZ | C8: Feature ZZ description
A9: Widget Fix | B9: Fix 1 | C9: Fix 1 bug description
A10: Widget Fix | B10: Fix 2 | C10: Fix 2 bug description
A11: Widget Fix | B11: Account Sharing - Trusted Advisor | C11: Fix 3 bug description
A12: New Prod | B12: Budget Wizard | C12: Easily create a personalized budget
A13: New Prod | B13: Category Wizard | C13: Personalized spending categorization
A14: New Prod | B14: Corporate Branding | C14: Co-brand, white label,

Sheet Feature Cards
A3: =E3 -> Feature A | C3: =E4 -> Feature B | E3: ='Feature List'!B5 -> Feature A | F3: ='Feature List'!C5 -> Feature A description
A4: =F3 -> Feature A description | C4: =F4 -> Feature B description | E4: ='Feature List'!B6 -> Feature B | F4: ='Feature List'!C6 -> Feature B description
A5: =E5 ->  | C5: =F5 -> 
A6: =E6 -> Feature C | C6: =E7 -> Feature ZZ | E6: ='Feature List'!B7 -> Feature C | F6: ='Feature List'!C7 -> Feature C description
A7: =F6 -> Feature C description | C7: =F7 -> Feature ZZ description | E7: ='Feature List'!B8 -> Feature ZZ | F7: ='Feature List'!C8 -> Feature ZZ description
A8: =E8 -> Fix 1 | C8: =E9 -> Fix 2 | E8: ='Feature List'!B9 -> Fix 1 | F8: ='Feature List'!C9 -> Fix 1 bug description
A9: =F8 -> Fix 1 bug description | C9: =F9 -> Fix 2 bug description | E9: ='Feature List'!B10 -> Fix 2 | F9: ='Feature List'!C10 -> Fix 2 bug description
A11: =E11 -> Account Sharing - Trusted Advisor | C11: =E12 ->  | E11: ='Feature List'!B11 -> Account Sharing - Trusted Advisor | F11: ='Feature List'!C11 -> Fix 3 bug description
A12: =F11 -> Fix 3 bug description | C12: =F12 ->  | E12: ='Feature List'!#REF! ->  | F12: ='Feature List'!#REF! -> 
A13: ='Feature List'!B17 -> 0 | C13: ='Feature List'!#REF! ->  | E13: ='Feature List'!#REF! ->  | F13: ='Feature List'!#REF! -> 
A14: ='Feature List'!C17 -> 0 | C14: ='Feature List'!#REF! ->  | E14: ='Feature List'!B12 -> Budget Wizard | F14: ='Feature List'!C12 -> Easily create a personalized budget
A16: =E16 -> Category Wizard | C16: =E17 -> Corporate Branding | E16: ='Feature List'!B13 -> Category Wizard | F16: ='Feature List'!C13 -> Personalized spending categorization
A17: =F16 -> Personalized spending categorization | C17: =F17 -> Co-brand, white label, | E17: ='Feature List'!B14 -> Corporate Branding | F17: ='Feature List'!C14 -> Co-brand, white label,
A18: =E18 -> 0 | C18: =E19 -> 0 | E18: ='Feature List'!B15 -> 0 | F18: ='Feature List'!C15 -> 0
A19: =F18 -> 0 | C19: =F19 -> 0 | E19: ='Feature List'!B16 -> 0 | F19: ='Feature List'!C16 -> 0
A21: =E21 -> 0 | C21: =E22 -> 0 | E21: ='Feature List'!B17 -> 0 | F21: ='Feature List'!C17 -> 0
A22: =F21 -> 0 | C22: =F22 -> 0 | E22: ='Feature List'!B18 -> 0 | F22: ='Feature List'!C18 -> 0
A23: =E23 -> 0 | C23: =E24 -> 0 | E23: ='Feature List'!B19 -> 0 | F23: ='Feature List'!C19 -> 0
A24: =F23 -> 0 | C24: =F24 -> 0 | E24: ='Feature List'!B20 -> 0 | F24: ='Feature List'!C20 -> 0
A26: =E26 -> 0 | C26: =E27 -> 0 | E26: ='Feature List'!B21 -> 0 | F26: ='Feature List'!C21 -> 0
A27: =F26 -> 0 | C27: =F27 -> 0 | E27: ='Feature List'!B22 -> 0 | F27: ='Feature List'!C22 -> 0
A28: =E28 -> 0 | C28: =E29 -> 0 | E28: ='Feature List'!B23 -> 0 | F28: ='Feature List'!C23 -> 0
A29: =F28 -> 0 | C29: =F29 -> 0 | E29: ='Feature List'!B24 -> 0 | F29: ='Feature List'!C24 -> 0
A31: =E31 -> 0 | C31: =E32 -> 0 | E31: ='Feature List'!B25 -> 0 | F31: ='Feature List'!C25 -> 0
A32: =F31 -> 0 | C32: =F32 -> 0 | E32: ='Feature List'!B26 -> 0 | F32: ='Feature List'!C26 -> 0
A33: =E33 -> 0 | C33: =E34 -> 0 | E33: ='Feature List'!B27 -> 0 | F33: ='Feature List'!C27 -> 0
A34: =F33 -> 0 | C34: =F34 -> 0 | E34: ='Feature List'!B28 -> 0 | F34: ='Feature List'!C28 -> 0
E35: ='Feature List'!B29 -> 0 | F35: ='Feature List'!C29 -> 0
A36: =E36 -> 0 | C36: =E37 -> 0 | E36: ='Feature List'!B30 -> 0 | F36: ='Feature List'!C30 -> 0
A37: =F36 -> 0 | C37: =F37 -> 0 | E37: ='Feature List'!B31 -> 0 | F37: ='Feature List'!C31 -> 0
A38: =E38 -> 0 | C38: =E39 -> 0 | E38: ='Feature List'!B32 -> 0 | F38: ='Feature List'!C32 -> 0
A39: =F38 -> 0 | C39: =F39 -> 0 | E39: ='Feature List'!B33 -> 0 | F39: ='Feature List'!C33 -> 0
E40: ='Feature List'!B34 -> 0 | F40: ='Feature List'!C34 -> 0
A41: =E41 -> 0 | C41: =E42 -> 0 | E41: ='Feature List'!B35 -> 0 | F41: ='Feature List'!C35 -> 0
A42: =F41 -> 0 | C42: =F42 -> 0 | E42: ='Feature List'!B36 -> 0 | F42: ='Feature List'!C36 -> 0
A43: =E43 -> 0 | C43: =E44 -> 0 | E43: ='Feature List'!B37 -> 0 | F43: ='Feature List'!C37 -> 0
A44: =F43 -> 0 | C44: =F44 -> 0 | E44: ='Feature List'!B38 -> 0 | F44: ='Feature List'!C38 -> 0
A45: =E45 ->  | C45: =F45 -> 
A46: =E46 -> 0 | C46: =E47 -> 0 | E46: ='Feature List'!B39 -> 0 | F46: ='Feature List'!C39 -> 0
A47: =F46 -> 0 | C47: =F47 -> 0 | E47: ='Feature List'!B40 -> 0 | F47: ='Feature List'!C40 -> 0
A48: =E48 -> 0 | C48: =E49 -> 0 | E48: ='Feature List'!B41 -> 0 | F48: ='Feature List'!C41 -> 0
A49: =F48 -> 0 | C49: =F49 -> 0 | E49: ='Feature List'!B42 -> 0 | F49: ='Feature List'!C42 -> 0
A50: =E50 ->  | C50: =F50 -> 
A51: =E51 -> 0 | C51: =E52 -> 0 | E51: ='Feature List'!B43 -> 0 | F51: ='Feature List'!C43 -> 0
A52: =F51 -> 0 | C52: =F52 -> 0 | E52: ='Feature List'!B44 -> 0 | F52: ='Feature List'!C44 -> 0
A53: =E54 -> 0 | C53: =F54 -> 0
A54: =E55 -> 0 | C54: =F55 -> 0 | E54: ='Feature List'!B45 -> 0 | F54: ='Feature List'!C45 -> 0
E55: ='Feature List'!B46 -> 0 | F55: ='Feature List'!C46 -> 0
A56: =E56 -> 0 | C56: =F56 -> 0
A57: =E57 -> 0 | C57: =E58 -> 0 | E57: ='Feature List'!B47 -> 0 | F57: ='Feature List'!C47 -> 0
A58: =F57 -> 0 | C58: =F58 -> 0 | E58: ='Feature List'!B48 -> 0 | F58: ='Feature List'!C48 -> 0
A59: =E60 -> 0 | C59: =F60 -> 0
A60: =E61 -> 0 | C60: =F61 -> 0 | E60: ='Feature List'!B49 -> 0 | F60: ='Feature List'!C49 -> 0
E61: ='Feature List'!B50 -> 0 | F61: ='Feature List'!C50 -> 0
E62: ='Feature List'!B51 -> 0 | F62: ='Feature List'!C51 -> 0

Sheet Initial Prioritization
A1: Feature Prioritization Manager
A2: Product Options | C2: Cat: Enhance, Change, Bug
A3: April ' 14 | C3: Bus Val: What is the reward/value? Scale of 1 to 5 (5 being the highest)
C4: Risk: What is the risk of not making the change? Scale of 1 to 5 (5 being the riskiest)
C5: Cost: Whatever works - dollars, points, hours, etc.
C6: Spending Goal: Release Capacity
F8: Spending goal: | G8: $150,000
A10: \/ | C10: ---------------------- Only sort these 6 columns using score/priority ---------------------- | F10: \/ | G10: \/=== Do not sort this column nor past this point
A11: Priority | B11: Feature Name | C11: Type | D11: Bus Value | E11: Risk | F11: Cost $ | G11: Cumulative $ | I11: No not touch these columns as they are used by other sheets | P11: Type | Q11: Type | R11: Type
A12: 0 | F12: 0 | G12: 0
A13: =A12+1 -> 1 | B13: ='Feature List'!B5 -> Feature A | C13: Grow | D13: 5 | E13: 1 | F13: $25,000 | G13: =G12+F13 -> $25,000 | I13: =IF((B13<>"")*(G13<=G$8),1,0) -> 1 | P13: Run | Q13: Grow | R13: Transform
A14: =A13+1 -> 2 | B14: ='Feature List'!B6 -> Feature B | C14: Grow | D14: 5 | E14: 1 | F14: $25,000 | G14: =G13+F14 -> $50,000 | I14: 1
A15: 3 | B15: ='Feature List'!B7 -> Feature C | C15: Run | D15: 5 | E15: 1 | F15: $50,000 | G15: =G14+F15 -> $100,000 | I15: 1
A16: 4 | B16: ='Feature List'!B8 -> Feature ZZ | C16: Transform | D16: 4 | E16: 1 | F16: $25,000 | G16: $125,000 | I16: 1
A17: 5 | B17: ='Feature List'!B10 -> Fix 2 | C17: Run | D17: 4 | E17: 1 | F17: $25,000 | G17: $150,000 | I17: 1
A18: 6 | B18: ='Feature List'!B9 -> Fix 1 | C18: Run | D18: 3 | E18: 1 | F18: $25,000 | G18: $175,000 | I18: 0
A19: 7 | B19: ='Feature List'!B12 -> Budget Wizard | C19: Transform | D19: 4 | E19: 1 | F19: $10,000 | G19: $185,000 | I19: =IF((B19<>"")*(G19<=G$8),1,0) -> 0
A20: 8 | B20: ='Feature List'!B13 -> Category Wizard | C20: Transform | D20: 3 | E20: 1 | F20: $10,000 | G20: $195,000 | I20: 0
A21: 9 | B21: ='Feature List'!B14 -> Corporate Branding | C21: Grow | D21: 3 | E21: 1 | F21: $10,000 | G21: $205,000 | I21: 0
A22: 10 | B22: ='Feature List'!B15 -> 0 | F22: $10,000 | G22: $215,000 | I22: 0
A23: 11 | B23: ='Feature List'!B16 -> 0 | F23: $10,000 | G23: $225,000 | I23: 0
A24: 12 | B24: ='Feature List'!B17 -> 0 | F24: $10,000 | G24: $235,000 | I24: 0
A25: 13 | B25: ='Feature List'!B18 -> 0 | F25: $10,000 | G25: $245,000 | I25: 0
A26: 14 | B26: ='Feature List'!B19 -> 0 | F26: $10,000 | G26: $255,000 | I26: 0
A27: 15 | B27: ='Feature List'!B20 -> 0 | G27: $255,000 | I27: =IF((B27<>"")*(G27<=G$8),1,0) -> 0
G28: $255,000 | I28: 0

Sheet Balance - Goals (hidden)
A1: Feature Prioritization Manager
A2: Adaptu Product Options
B4: Instructions: Under Grow, Run and Transform set only the %-age in cells B10, C10, and D10 for how you want to distribute your spending based on
B5: your company's strategic goals for this spending. Compare your "Above the Waterline" amounts and see how close
B6: or far off you are. On the gap line are you over allocated for a given area? Under?
B8: Spending Goal: | C8: ='Initial Prioritization'!G8 -> $150,000 | D8: <- from previous sheet
A10: Data entry:
C11: Run/Maint | D11: Grow/Platform | E11: Transform/Innovation | G11: Total (100%)
B12: Goal %-age | C12: 20% | D12: 30% | E12: 50% | G12: =SUM(C12:E12) -> 100% | I12: <- Should be 100%
A14: Simple Priority Analysis:
B15: Goal $ | C15: =C8*C12 -> $30,000 | D15: =C8*D12 -> $45,000 | E15: =E12*C8 -> $75,000 | G15: =SUM(C15:E15) -> $150,000 | I15: <- Should be green
B16: Above Waterline | C16: =SUMIFS('Initial Prioritization'!F13:F28,'Initial Prioritization'!C13:C28,"Run",'Initial Prioritization'!I13:I28,1) -> $75,000 | D16: =SUMIFS('Initial Prioritization'!F13:F28,'Initial Prioritization'!C13:C28,"Grow",'Initial Prioritization'!I13:I28,1) -> $50,000 | E16: =SUMIFS('Initial Prioritization'!F13:F28,'Initial Prioritization'!C13:C28,"Transform",'Initial Prioritization'!I13:I28,1) -> $25,000 | G16: =SUM(C16:E16) -> $150,000
B17: Gap | C17: =C15-C16 -> $(45,000) | D17: =D15-D16 -> $(5,000) | E17: =E15-E16 -> $50,000 | I17: <- Look where you are misallocated and then rethink priorities…
A19: Analysis After Balancing Run, Grow, Transform:
B20: Goal $ | C20: =C15 -> $30,000 | D20: =D15 -> $45,000 | E20: $75,000 | G20: =SUM(C20:E20) -> $150,000 | I20: <- Should be green
B21: Above Waterline | C21: =SUMIFS(Run!F21:F271,Run!C21:C271,"Run",Run!I21:I271,1) -> $23,800 | D21: =SUMIFS(Grow!F21:F271,Grow!C21:C271,"Grow",Grow!I21:I271,1) -> $10,000 | E21: =SUMIFS(Transform!F21:F271,Transform!C21:C271,"Transform",Transform!I21:I271,1) -> $25,000 | G21: =SUM(C21:E21) -> $58,800
B22: Gap | C22: =C20-C21 -> $6,200 | D22: =D20-D21 -> $35,000 | E22: =E20-E21 -> $50,000 | I22: <- Look where you are misallocated and then rethink priorities…

Sheet Run (hidden)
A1: Feature Prioritization Manager
A2: Adaptu Product Options
A4: Instructions: Run the Macro called "CopyRunInvestments'!!! Using the spending goal set in the previous tab use your sort tool to
A5: sort the columns Score/Priority through Cost$ to sort by the highest priority items first (do not touch Cumulative $ or columns to its right).
A6: Based on where you run out of money, you'll see what you can fund in green and below what you can afford
A7: in red. These items in red are 'below the waterline' (just like the red waterline painted on a ship).
B9: Score/Priority: Anything that sorts (no ties). Use 1-100 or even a formula that computes a score
B10: Description: What you are considering
B11: Type: Run, Grow, Transform (based on Meta Group's "Run the business, Grow the business, Transform the business" definitions;
B12: Gartner calls these same groupings "Maintenance, Platform, and Innovation")
B13: Bus Value: On a scale of 1 to 5 (5 being the highest) what is the value? Also called "Reward" in some circles.
B14: Risk: On a scale of 1 to 5 (5 being the riskiest) what is the risk?
B15: Cost: What is the estimated cost? (if you only know headcount, translate that to $)
F17: Spending goal: | G17: ='Balance - Goals'!C15 -> $30,000 | H17: <<< Do not touch: From the 'Balance' tab…
A19: \/ | C19: ---------------------- Only sort these 6 columns using score/priority ---------------------- | F19: \/ | G19: \/=== Do not sort this column nor past this point
A20: Score / Priority | B20: Description | C20: Type | D20: Bus Value | E20: Risk | F20: Cost $ | G20: Cumulative $ | I20: No not touch these columns as they are used by other sheets
A21: 10 | B21: second | C21: Run | D21: 3 | E21: 2 | F21: $15,800 | G21: =F21 -> $15,800 | I21: =IF((B21<>"")*(G21<=G$17),1,0) -> 1
A22: 3 | B22: fourth | C22: Run | D22: 2 | E22: 2 | F22: $8,000 | G22: =G21+F22 -> $23,800 | I22: 1
G23: =G22+F23 -> $23,800 | I23: 0
G24: $23,800 | I24: 0
G25: $23,800 | I25: 0
G26: $23,800 | I26: 0
G27: $23,800 | I27: 0
G28: $23,800 | I28: 0
G29: $23,800 | I29: 0
G30: $23,800 | I30: 0
G31: $23,800 | I31: 0
G32: $23,800 | I32: 0
G33: $23,800 | I33: 0
G34: $23,800 | I34: 0
G35: $23,800 | I35: 0
G36: $23,800 | I36: 0
G37: $23,800 | I37: 0
G38: $23,800 | I38: 0
G39: $23,800 | I39: 0
G40: $23,800 | I40: 0
G41: $23,800 | I41: 0
G42: $23,800 | I42: 0
G43: $23,800 | I43: 0
G44: $23,800 | I44: 0
G45: $23,800 | I45: 0
G46: $23,800 | I46: 0
G47: $23,800 | I47: 0
G48: $23,800 | I48: 0
G49: $23,800 | I49: 0
G50: $23,800 | I50: 0
G51: $23,800 | I51: 0
G52: $23,800 | I52: 0
G53: $23,800 | I53: 0
G54: $23,800 | I54: 0
G55: $23,800 | I55: 0
G56: $23,800 | I56: 0
G57: $23,800 | I57: 0
G58: $23,800 | I58: 0
G59: $23,800 | I59: 0
G60: $23,800 | I60: 0
G61: $23,800 | I61: 0
G62: $23,800 | I62: 0
G63: $23,800 | I63: 0
G64: $23,800 | I64: 0
G65: $23,800 | I65: 0
G66: $23,800 | I66: 0
G67: $23,800 | I67: 0
G68: $23,800 | I68: 0
G69: $23,800 | I69: 0
G70: $23,800 | I70: 0
G71: $23,800 | I71: 0
G72: $23,800 | I72: 0
G73: $23,800 | I73: 0
G74: $23,800 | I74: 0
G75: $23,800 | I75: 0
G76: $23,800 | I76: 0
G77: $23,800 | I77: 0
G78: $23,800 | I78: 0
G79: $23,800 | I79: 0
G80: $23,800 | I80: 0
G81: $23,800 | I81: 0
G82: $23,800 | I82: 0
G83: $23,800 | I83: 0
G84: $23,800 | I84: 0
G85: $23,800 | I85: =IF((B85<>"")*(G85<=G$17),1,0) -> 0
G86: $23,800 | I86: 0
G87: =G86+F87 -> $23,800 | I87: 0
G88: $23,800 | I88: 0
G89: $23,800 | I89: 0
G90: $23,800 | I90: 0
G91: $23,800 | I91: 0
G92: $23,800 | I92: 0
G93: $23,800 | I93: 0
G94: $23,800 | I94: 0
G95: $23,800 | I95: 0
G96: $23,800 | I96: 0
G97: $23,800 | I97: 0
G98: $23,800 | I98: 0
G99: $23,800 | I99: 0
G100: $23,800 | I100: 0
G101: $23,800 | I101: 0
G102: $23,800 | I102: 0
G103: $23,800 | I103: 0
G104: $23,800 | I104: 0
G105: $23,800 | I105: 0
G106: $23,800 | I106: 0
G107: $23,800 | I107: 0
G108: $23,800 | I108: 0
G109: $23,800 | I109: 0
G110: $23,800 | I110: 0
G111: $23,800 | I111: 0
G112: $23,800 | I112: 0
G113: $23,800 | I113: 0
G114: $23,800 | I114: 0
G115: $23,800 | I115: 0
G116: $23,800 | I116: 0
G117: $23,800 | I117: 0
G118: $23,800 | I118: 0
G119: $23,800 | I119: 0
G120: $23,800 | I120: 0
G121: $23,800 | I121: 0
G122: $23,800 | I122: 0
G123: $23,800 | I123: 0
G124: $23,800 | I124: 0
G125: $23,800 | I125: 0
G126: $23,800 | I126: 0
G127: $23,800 | I127: 0
G128: $23,800 | I128: 0
G129: $23,800 | I129: 0
G130: $23,800 | I130: 0
G131: $23,800 | I131: 0
G132: $23,800 | I132: 0
G133: $23,800 | I133: 0
G134: $23,800 | I134: 0
G135: $23,800 | I135: 0
G136: $23,800 | I136: 0
G137: $23,800 | I137: 0
G138: $23,800 | I138: 0
G139: $23,800 | I139: 0
G140: $23,800 | I140: 0
G141: $23,800 | I141: 0
G142: $23,800 | I142: 0
G143: $23,800 | I143: 0
G144: $23,800 | I144: 0
G145: $23,800 | I145: 0
G146: $23,800 | I146: 0
G147: $23,800 | I147: 0
G148: $23,800 | I148: 0
G149: $23,800 | I149: =IF((B149<>"")*(G149<=G$17),1,0) -> 0
G150: $23,800 | I150: 0
G151: =G150+F151 -> $23,800 | I151: 0
G152: $23,800 | I152: 0
G153: $23,800 | I153: 0
G154: $23,800 | I154: 0
G155: $23,800 | I155: 0
G156: $23,800 | I156: 0
G157: $23,800 | I157: 0
G158: $23,800 | I158: 0
G159: $23,800 | I159: 0
G160: $23,800 | I160: 0
G161: $23,800 | I161: 0
G162: $23,800 | I162: 0
G163: $23,800 | I163: 0
G164: $23,800 | I164: 0
G165: $23,800 | I165: 0
G166: $23,800 | I166: 0
G167: $23,800 | I167: 0
G168: $23,800 | I168: 0
G169: $23,800 | I169: 0
G170: $23,800 | I170: 0
G171: $23,800 | I171: 0
G172: $23,800 | I172: 0
G173: $23,800 | I173: 0
G174: $23,800 | I174: 0
G175: $23,800 | I175: 0
G176: $23,800 | I176: 0
G177: $23,800 | I177: 0
G178: $23,800 | I178: 0
G179: $23,800 | I179: 0
G180: $23,800 | I180: 0
G181: $23,800 | I181: 0
G182: $23,800 | I182: 0
G183: $23,800 | I183: 0
G184: $23,800 | I184: 0
G185: $23,800 | I185: 0
G186: $23,800 | I186: 0
G187: $23,800 | I187: 0
G188: $23,800 | I188: 0
G189: $23,800 | I189: 0
G190: $23,800 | I190: 0
G191: $23,800 | I191: 0
G192: $23,800 | I192: 0
G193: $23,800 | I193: 0
G194: $23,800 | I194: 0
G195: $23,800 | I195: 0
G196: $23,800 | I196: 0
G197: $23,800 | I197: 0
G198: $23,800 | I198: 0
G199: $23,800 | I199: 0
G200: $23,800 | I200: 0
G201: $23,800 | I201: 0
G202: $23,800 | I202: 0
G203: $23,800 | I203: 0
G204: $23,800 | I204: 0
... 67 more rows

Sheet Grow (hidden)
A1: Feature Prioritization Manager
A2: Adaptu Product Options
A4: Instructions: Run the Macro called "CopyGrowInvestments'!!! Using the spending goal set in the previous tab use your sort tool to
A5: sort the columns Score/Priority through Cost$ to sort by the highest priority items first (do not touch Cumulative $ or columns to its right).
A6: Based on where you run out of money, you'll see what you can fund in green and below what you can afford
A7: in red. These items in red are 'below the waterline' (just like the red waterline painted on a ship).
B9: Score/Priority: Anything that sorts (no ties). Use 1-100 or even a formula that computes a score
B10: Description: What you are considering
B11: Type: Run, Grow, Transform (based on Meta Group's "Run the business, Grow the business, Transform the business" definitions;
B12: Gartner calls these same groupings "Maintenance, Platform, and Innovation")
B13: Bus Value: On a scale of 1 to 5 (5 being the highest) what is the value? Also called "Reward" in some circles.
B14: Risk: On a scale of 1 to 5 (5 being the riskiest) what is the risk?
B15: Cost: What is the estimated cost? (if you only know headcount, translate that to $)
F17: Spending goal: | G17: ='Balance - Goals'!D15 -> $45,000 | H17: <<< Do not touch: From the 'Balance' tab…
A19: \/ | C19: ---------------------- Only sort these 6 columns using score/priority ---------------------- | F19: \/ | G19: \/=== Do not sort this column nor past this point
A20: Score / Priority | B20: Description | C20: Type | D20: Bus Value | E20: Risk | F20: Cost $ | G20: Cumulative $ | I20: No not touch these columns as they are used by other sheets
A21: 5 | B21: third | C21: Grow | D21: 2 | E21: 5 | F21: $10,000 | G21: =F21 -> $10,000 | I21: =IF((B21<>"")*(G21<=G$17),1,0) -> 1
G22: =G21+F22 -> $10,000 | I22: 0
G23: =G22+F23 -> $10,000 | I23: 0
G24: $10,000 | I24: 0
G25: $10,000 | I25: 0
G26: $10,000 | I26: 0
G27: $10,000 | I27: 0
G28: $10,000 | I28: 0
G29: $10,000 | I29: 0
G30: $10,000 | I30: 0
G31: $10,000 | I31: 0
G32: $10,000 | I32: 0
G33: $10,000 | I33: 0
G34: $10,000 | I34: 0
G35: $10,000 | I35: 0
G36: $10,000 | I36: 0
G37: $10,000 | I37: 0
G38: $10,000 | I38: 0
G39: $10,000 | I39: 0
G40: $10,000 | I40: 0
G41: $10,000 | I41: 0
G42: $10,000 | I42: 0
G43: $10,000 | I43: 0
G44: $10,000 | I44: 0
G45: $10,000 | I45: 0
G46: $10,000 | I46: 0
G47: $10,000 | I47: 0
G48: $10,000 | I48: 0
G49: $10,000 | I49: 0
G50: $10,000 | I50: 0
G51: $10,000 | I51: 0
G52: $10,000 | I52: 0
G53: $10,000 | I53: 0
G54: $10,000 | I54: 0
G55: $10,000 | I55: 0
G56: $10,000 | I56: 0
G57: $10,000 | I57: 0
G58: $10,000 | I58: 0
G59: $10,000 | I59: 0
G60: $10,000 | I60: 0
G61: $10,000 | I61: 0
G62: $10,000 | I62: 0
G63: $10,000 | I63: 0
G64: $10,000 | I64: 0
G65: $10,000 | I65: 0
G66: $10,000 | I66: 0
G67: $10,000 | I67: 0
G68: $10,000 | I68: 0
G69: $10,000 | I69: 0
G70: $10,000 | I70: 0
G71: $10,000 | I71: 0
G72: $10,000 | I72: 0
G73: $10,000 | I73: 0
G74: $10,000 | I74: 0
G75: $10,000 | I75: 0
G76: $10,000 | I76: 0
G77: $10,000 | I77: 0
G78: $10,000 | I78: 0
G79: $10,000 | I79: 0
G80: $10,000 | I80: 0
G81: $10,000 | I81: 0
G82: $10,000 | I82: 0
G83: $10,000 | I83: 0
G84: $10,000 | I84: 0
G85: $10,000 | I85: =IF((B85<>"")*(G85<=G$17),1,0) -> 0
G86: $10,000 | I86: 0
G87: =G86+F87 -> $10,000 | I87: 0
G88: $10,000 | I88: 0
G89: $10,000 | I89: 0
G90: $10,000 | I90: 0
G91: $10,000 | I91: 0
G92: $10,000 | I92: 0
G93: $10,000 | I93: 0
G94: $10,000 | I94: 0
G95: $10,000 | I95: 0
G96: $10,000 | I96: 0
G97: $10,000 | I97: 0
G98: $10,000 | I98: 0
G99: $10,000 | I99: 0
G100: $10,000 | I100: 0
G101: $10,000 | I101: 0
G102: $10,000 | I102: 0
G103: $10,000 | I103: 0
G104: $10,000 | I104: 0
G105: $10,000 | I105: 0
G106: $10,000 | I106: 0
G107: $10,000 | I107: 0
G108: $10,000 | I108: 0
G109: $10,000 | I109: 0
G110: $10,000 | I110: 0
G111: $10,000 | I111: 0
G112: $10,000 | I112: 0
G113: $10,000 | I113: 0
G114: $10,000 | I114: 0
G115: $10,000 | I115: 0
G116: $10,000 | I116: 0
G117: $10,000 | I117: 0
G118: $10,000 | I118: 0
G119: $10,000 | I119: 0
G120: $10,000 | I120: 0
G121: $10,000 | I121: 0
G122: $10,000 | I122: 0
G123: $10,000 | I123: 0
G124: $10,000 | I124: 0
G125: $10,000 | I125: 0
G126: $10,000 | I126: 0
G127: $10,000 | I127: 0
G128: $10,000 | I128: 0
G129: $10,000 | I129: 0
G130: $10,000 | I130: 0
G131: $10,000 | I131: 0
G132: $10,000 | I132: 0
G133: $10,000 | I133: 0
G134: $10,000 | I134: 0
G135: $10,000 | I135: 0
G136: $10,000 | I136: 0
G137: $10,000 | I137: 0
G138: $10,000 | I138: 0
G139: $10,000 | I139: 0
G140: $10,000 | I140: 0
G141: $10,000 | I141: 0
G142: $10,000 | I142: 0
G143: $10,000 | I143: 0
G144: $10,000 | I144: 0
G145: $10,000 | I145: 0
G146: $10,000 | I146: 0
G147: $10,000 | I147: 0
G148: $10,000 | I148: 0
G149: $10,000 | I149: =IF((B149<>"")*(G149<=G$17),1,0) -> 0
G150: $10,000 | I150: 0
G151: =G150+F151 -> $10,000 | I151: 0
G152: $10,000 | I152: 0
G153: $10,000 | I153: 0
G154: $10,000 | I154: 0
G155: $10,000 | I155: 0
G156: $10,000 | I156: 0
G157: $10,000 | I157: 0
G158: $10,000 | I158: 0
G159: $10,000 | I159: 0
G160: $10,000 | I160: 0
G161: $10,000 | I161: 0
G162: $10,000 | I162: 0
G163: $10,000 | I163: 0
G164: $10,000 | I164: 0
G165: $10,000 | I165: 0
G166: $10,000 | I166: 0
G167: $10,000 | I167: 0
G168: $10,000 | I168: 0
G169: $10,000 | I169: 0
G170: $10,000 | I170: 0
G171: $10,000 | I171: 0
G172: $10,000 | I172: 0
G173: $10,000 | I173: 0
G174: $10,000 | I174: 0
G175: $10,000 | I175: 0
G176: $10,000 | I176: 0
G177: $10,000 | I177: 0
G178: $10,000 | I178: 0
G179: $10,000 | I179: 0
G180: $10,000 | I180: 0
G181: $10,000 | I181: 0
G182: $10,000 | I182: 0
G183: $10,000 | I183: 0
G184: $10,000 | I184: 0
G185: $10,000 | I185: 0
G186: $10,000 | I186: 0
G187: $10,000 | I187: 0
G188: $10,000 | I188: 0
G189: $10,000 | I189: 0
G190: $10,000 | I190: 0
G191: $10,000 | I191: 0
G192: $10,000 | I192: 0
G193: $10,000 | I193: 0
G194: $10,000 | I194: 0
G195: $10,000 | I195: 0
G196: $10,000 | I196: 0
G197: $10,000 | I197: 0
G198: $10,000 | I198: 0
G199: $10,000 | I199: 0
G200: $10,000 | I200: 0
G201: $10,000 | I201: 0
G202: $10,000 | I202: 0
G203: $10,000 | I203: 0
G204: $10,000 | I204: 0
... 67 more rows

Sheet Transform (hidden)
A1: Feature Prioritization Manager
A2: Adaptu Product Options
A4: Instructions: Run the Macro called "CopyTransformInvestments'!!! Using the spending goal set in the previous tab use your sort tool to
A5: sort the columns Score/Priority through Cost$ to sort by the highest priority items first (do not touch Cumulative $ or columns to its right).
A6: Based on where you run out of money, you'll see what you can fund in green and below what you can afford
A7: in red. These items in red are 'below the waterline' (just like the red waterline painted on a ship).
B9: Score/Priority: Anything that sorts (no ties). Use 1-100 or even a formula that computes a score
B10: Description: What you are considering
B11: Type: Run, Grow, Transform (based on Meta Group's "Run the business, Grow the business, Transform the business" definitions;
B12: Gartner calls these same groupings "Maintenance, Platform, and Innovation")
B13: Bus Value: On a scale of 1 to 5 (5 being the highest) what is the value? Also called "Reward" in some circles.
B14: Risk: On a scale of 1 to 5 (5 being the riskiest) what is the risk?
B15: Cost: What is the estimated cost? (if you only know headcount, translate that to $)
F17: Spending goal: | G17: ='Balance - Goals'!E15 -> $75,000 | H17: <<< Do not touch: From the 'Balance' tab…
A19: \/ | C19: ---------------------- Only sort these 6 columns using score/priority ---------------------- | F19: \/ | G19: \/=== Do not sort this column nor past this point
A20: Score / Priority | B20: Description | C20: Type | D20: Bus Value | E20: Risk | F20: Cost $ | G20: Cumulative $ | I20: No not touch these columns as they are used by other sheets
A21: 25 | B21: first | C21: Transform | D21: 5 | E21: 4 | F21: $25,000 | G21: =F21 -> $25,000 | I21: =IF((B21<>"")*(G21<=G$17),1,0) -> 1
G22: =G21+F22 -> $25,000 | I22: 0
G23: =G22+F23 -> $25,000 | I23: 0
G24: $25,000 | I24: 0
G25: $25,000 | I25: 0
G26: $25,000 | I26: 0
G27: $25,000 | I27: 0
G28: $25,000 | I28: 0
G29: $25,000 | I29: 0
G30: $25,000 | I30: 0
G31: $25,000 | I31: 0
G32: $25,000 | I32: 0
G33: $25,000 | I33: 0
G34: $25,000 | I34: 0
G35: $25,000 | I35: 0
G36: $25,000 | I36: 0
G37: $25,000 | I37: 0
G38: $25,000 | I38: 0
G39: $25,000 | I39: 0
G40: $25,000 | I40: 0
G41: $25,000 | I41: 0
G42: $25,000 | I42: 0
G43: $25,000 | I43: 0
G44: $25,000 | I44: 0
G45: $25,000 | I45: 0
G46: $25,000 | I46: 0
G47: $25,000 | I47: 0
G48: $25,000 | I48: 0
G49: $25,000 | I49: 0
G50: $25,000 | I50: 0
G51: $25,000 | I51: 0
G52: $25,000 | I52: 0
G53: $25,000 | I53: 0
G54: $25,000 | I54: 0
G55: $25,000 | I55: 0
G56: $25,000 | I56: 0
G57: $25,000 | I57: 0
G58: $25,000 | I58: 0
G59: $25,000 | I59: 0
G60: $25,000 | I60: 0
G61: $25,000 | I61: 0
G62: $25,000 | I62: 0
G63: $25,000 | I63: 0
G64: $25,000 | I64: 0
G65: $25,000 | I65: 0
G66: $25,000 | I66: 0
G67: $25,000 | I67: 0
G68: $25,000 | I68: 0
G69: $25,000 | I69: 0
G70: $25,000 | I70: 0
G71: $25,000 | I71: 0
G72: $25,000 | I72: 0
G73: $25,000 | I73: 0
G74: $25,000 | I74: 0
G75: $25,000 | I75: 0
G76: $25,000 | I76: 0
G77: $25,000 | I77: 0
G78: $25,000 | I78: 0
G79: $25,000 | I79: 0
G80: $25,000 | I80: 0
G81: $25,000 | I81: 0
G82: $25,000 | I82: 0
G83: $25,000 | I83: 0
G84: $25,000 | I84: 0
G85: $25,000 | I85: =IF((B85<>"")*(G85<=G$17),1,0) -> 0
G86: $25,000 | I86: 0
G87: =G86+F87 -> $25,000 | I87: 0
G88: $25,000 | I88: 0
G89: $25,000 | I89: 0
G90: $25,000 | I90: 0
G91: $25,000 | I91: 0
G92: $25,000 | I92: 0
G93: $25,000 | I93: 0
G94: $25,000 | I94: 0
G95: $25,000 | I95: 0
G96: $25,000 | I96: 0
G97: $25,000 | I97: 0
G98: $25,000 | I98: 0
G99: $25,000 | I99: 0
G100: $25,000 | I100: 0
G101: $25,000 | I101: 0
G102: $25,000 | I102: 0
G103: $25,000 | I103: 0
G104: $25,000 | I104: 0
G105: $25,000 | I105: 0
G106: $25,000 | I106: 0
G107: $25,000 | I107: 0
G108: $25,000 | I108: 0
G109: $25,000 | I109: 0
G110: $25,000 | I110: 0
G111: $25,000 | I111: 0
G112: $25,000 | I112: 0
G113: $25,000 | I113: 0
G114: $25,000 | I114: 0
G115: $25,000 | I115: 0
G116: $25,000 | I116: 0
G117: $25,000 | I117: 0
G118: $25,000 | I118: 0
G119: $25,000 | I119: 0
G120: $25,000 | I120: 0
G121: $25,000 | I121: 0
G122: $25,000 | I122: 0
G123: $25,000 | I123: 0
G124: $25,000 | I124: 0
G125: $25,000 | I125: 0
G126: $25,000 | I126: 0
G127: $25,000 | I127: 0
G128: $25,000 | I128: 0
G129: $25,000 | I129: 0
G130: $25,000 | I130: 0
G131: $25,000 | I131: 0
G132: $25,000 | I132: 0
G133: $25,000 | I133: 0
G134: $25,000 | I134: 0
G135: $25,000 | I135: 0
G136: $25,000 | I136: 0
G137: $25,000 | I137: 0
G138: $25,000 | I138: 0
G139: $25,000 | I139: 0
G140: $25,000 | I140: 0
G141: $25,000 | I141: 0
G142: $25,000 | I142: 0
G143: $25,000 | I143: 0
G144: $25,000 | I144: 0
G145: $25,000 | I145: 0
G146: $25,000 | I146: 0
G147: $25,000 | I147: 0
G148: $25,000 | I148: 0
G149: $25,000 | I149: =IF((B149<>"")*(G149<=G$17),1,0) -> 0
G150: $25,000 | I150: 0
G151: =G150+F151 -> $25,000 | I151: 0
G152: $25,000 | I152: 0
G153: $25,000 | I153: 0
G154: $25,000 | I154: 0
G155: $25,000 | I155: 0
G156: $25,000 | I156: 0
G157: $25,000 | I157: 0
G158: $25,000 | I158: 0
G159: $25,000 | I159: 0
G160: $25,000 | I160: 0
G161: $25,000 | I161: 0
G162: $25,000 | I162: 0
G163: $25,000 | I163: 0
G164: $25,000 | I164: 0
G165: $25,000 | I165: 0
G166: $25,000 | I166: 0
G167: $25,000 | I167: 0
G168: $25,000 | I168: 0
G169: $25,000 | I169: 0
G170: $25,000 | I170: 0
G171: $25,000 | I171: 0
G172: $25,000 | I172: 0
G173: $25,000 | I173: 0
G174: $25,000 | I174: 0
G175: $25,000 | I175: 0
G176: $25,000 | I176: 0
G177: $25,000 | I177: 0
G178: $25,000 | I178: 0
G179: $25,000 | I179: 0
G180: $25,000 | I180: 0
G181: $25,000 | I181: 0
G182: $25,000 | I182: 0
G183: $25,000 | I183: 0
G184: $25,000 | I184: 0
G185: $25,000 | I185: 0
G186: $25,000 | I186: 0
G187: $25,000 | I187: 0
G188: $25,000 | I188: 0
G189: $25,000 | I189: 0
G190: $25,000 | I190: 0
G191: $25,000 | I191: 0
G192: $25,000 | I192: 0
G193: $25,000 | I193: 0
G194: $25,000 | I194: 0
G195: $25,000 | I195: 0
G196: $25,000 | I196: 0
G197: $25,000 | I197: 0
G198: $25,000 | I198: 0
G199: $25,000 | I199: 0
G200: $25,000 | I200: 0
G201: $25,000 | I201: 0
G202: $25,000 | I202: 0
G203: $25,000 | I203: 0
G204: $25,000 | I204: 0
... 67 more rows
